bitfinex-derivatives/quotes_ETHF0:USTF0_20250909
["timestamp","ask_amount","ask_price","bid_price","bid_amount"]
[1757425690652,0.3934,4361.4,4361.3,0.22947]
[1757425691151,0.3934,4361.4,4361.1,3.2078]
[1757425691350,0.3934,4361.4,4361.3,0.22947]
[1757425691745,0.3934,4361.4,4361.1,3.2078]
[1757425692046,0.3934,4361.4,4361.3,0.22947]
[1757425692438,0.1465,4362.0,4361.1,3.2078]
[1757425692637,0.1465,4362.0,4361.2,0.2122]
[1757425692638,0.6324,4361.9,4361.2,0.2122]
[1757425692840,0.239,4361.9,4361.5,0.22947]
[1757425693152,0.3934,4361.8,4361.5,0.22947]
[1757425694042,0.1465,4361.5,4361.4,0.9864]
[1757425694247,0.7789,4361.5,4361.4,0.9864]
[1757425694950,4.7789,4361.5,4361.4,0.9864]
[1757425695150,4.7789,4361.5,4361.4,0.5886]
[1757425695647,4.7789,4361.5,4360.6,1.7664]
[1757425695846,4.7789,4361.5,4360.7,0.22947]
[1757425695847,0.3928,4360.9,4360.7,0.22947]
[1757425696048,0.3928,4360.8,4360.0,3.3541]
[1757425696248,0.3928,4360.8,4360.0,3.2078]
[1757425696449,0.3928,4360.1,4359.4,0.3826]
[1757425696756,3.2078,4359.6,4359.3,0.22947]
[1757425696945,0.0998,4360.5,4358.8,3.2078]
[1757425696946,3.2078,4360.2,4359.1,0.3764]
[1757425697147,0.239,4360.1,4359.6,0.3764]
[1757425697447,0.239,4360.1,4359.5,0.5302]
[1757425697448,0.6116,4360.1,4359.5,0.5302]
[1757425697649,3.2078,4359.7,4358.9,3.5842]
[1757425697955,0.3726,4359.1,4358.3,0.3764]
[1757425698150,0.239,4359.0,4358.3,0.3764]
[1757425698356,3.2078,4358.7,4358.4,0.22947]
[1757425698650,3.2078,4358.7,4358.5,0.3764]
[1757425698651,0.239,4358.6,4358.5,0.3764]
[1757425699148,0.239,4358.6,4358.3,2.6616]
[1757425699149,0.3726,4358.5,4358.3,2.6616]
[1757425699352,0.239,4358.6,4358.3,2.6616]
[1757425699650,0.3726,4358.3,4357.1,2.4368347]
[1757425699851,0.1439,4357.5,4356.6,3.2078]
[1757425700049,0.3726,4356.9,4356.7,0.22947]
[1757425700244,0.239,4356.8,4356.7,0.22947]
[1757425701057,0.6116,4356.8,4356.7,0.22947]
[1757425701858,3.2078,4357.0,4356.8,0.3868]
[1757425702154,3.2078,4357.0,4356.8,0.7632]
[1757425702155,0.75234956,4356.9,4356.8,0.7632]
[1757425702655,0.75234956,4356.9,4356.8,0.3868]
[1757425703151,0.239,4356.9,4356.8,0.7632]
[1757425703554,3.2078,4357.6,4357.0,0.1538]
[1757425703749,0.75283153,4357.5,4357.2,0.60587]
[1757425703957,0.88643153,4357.4,4356.8,0.3868]
[1757425704149,0.51383153,4357.3,4357.1,0.3764]
[1757425704349,0.51383153,4357.2,4357.1,0.3764]
[1757425704551,0.75283153,4357.2,4357.1,0.3764]
[1757425704950,0.75283153,4357.2,4357.1,3.5444]
[1757425705352,0.239,4357.2,4357.1,3.5444]
[1757425705559,3.2078,4357.6,4357.1,3.5444]
[1757425705861,3.2078,4358.1,4357.6,0.3764]
[1757425706057,0.75317534,4358.0,4357.8,0.3764]
[1757425706255,0.51417534,4357.9,4357.8,0.3764]
[1757425707359,0.3726,4357.7,4357.1,3.168]
[1757425707545,0.3726,4357.5,4357.1,3.168]
[1757425707751,0.51417534,4357.4,4357.1,3.168]
[1757425708056,0.51417534,4357.4,4356.4,0.3764]
[1757425708057,0.3726,4357.2,4356.4,0.3764]
[1757425708255,3.5804,4356.9,4356.6,0.60587]
[1757425708454,0.239,4356.8,4356.6,0.60587]
[1757425708754,0.239,4356.8,4356.7,0.3764]
[1757425709252,3.2078,4356.9,4356.8,0.3764]
[1757425709452,0.75302949,4356.9,4356.8,0.60587]
[1757425709653,0.239,4356.9,4356.8,0.3764]
[1757425710053,0.239,4356.9,4356.5,3.3616]
[1757425710054,0.6116,4356.9,4356.6,0.3764]
[1757425710254,0.6116,4356.9,4356.0,3.3616]
[1757425710255,0.6116,4356.9,4356.1,0.3764]
[1757425710450,0.239,4356.9,4356.4,0.22947]
[1757425710656,0.88655713,4356.8,4356.0,3.3616]
[1757425710961,0.51395713,4356.7,4356.3,0.22947]
[1757425711148,3.5804,4356.5,4356.2,0.22947]
[1757425711348,0.3726,4356.3,4356.2,0.22947]
[1757425711560,0.88543747,4356.3,4354.7,36.2558]
[1757425711751,3.2078,4355.3,4354.7,3.5842]
[1757425711950,0.239,4355.2,4355.1,0.60587]
[1757425712456,36.2708,4356.2,4355.1,0.3764]
[1757425712660,0.51242176,4356.1,4355.5,0.1538]
[1757425712854,0.239,4356.0,4355.6,0.3764]
[1757425713157,3.2078,4356.8,4356.1,0.22947]
[1757425713357,0.75134582,4356.7,4356.2,0.3764]
[1757425713557,0.51234582,4356.6,4356.5,0.3764]
[1757425713757,0.239,4356.6,4356.5,0.3764]
[1757425713958,3.2078,4356.8,4356.5,0.38327]
[1757425714154,36.2728,4357.4,4356.5,0.1538]
[1757425714463,0.75109978,4357.3,4357.0,0.1538]
[1757425714759,36.2728,4357.4,4357.3,0.60587]
[1757425714957,36.5118,4357.4,4357.3,0.60587]
[1757425715158,36.5118,4357.4,4357.3,0.3764]
[1757425715955,36.5118,4357.4,4356.5,3.738]
[1757425715956,0.3726,4357.3,4356.5,3.738]
[1757425716152,0.3726,4356.8,4356.5,0.3764]
[1757425716361,0.239,4356.7,4356.6,0.22947]
[1757425716550,0.239,4356.7,4356.6,0.60587]
[1757425716751,0.239,4356.7,4356.6,3.5842]
[1757425717053,0.239,4357.2,4357.0,0.1538]
[1757425717256,0.239,4357.2,4357.1,0.3764]
[1757425717560,0.239,4357.2,4357.1,0.60587]
[1757425717756,0.239,4357.2,4357.1,0.3764]
[1757425718759,3.2078,4357.9,4357.1,0.3764]
[1757425718962,0.75106119,4357.8,4357.5,0.1538]
[1757425719157,0.239,4357.8,4357.7,0.3764]
[1757425719464,0.239,4357.8,4357.7,0.22947]
[1757425719761,0.239,4357.8,4357.7,0.60587]
[1757425720155,3.2078,4358.5,4357.7,0.60587]
[1757425720156,3.2078,4358.5,4357.8,0.3764]
[1757425720363,1.12379767,4358.4,4357.8,0.3764]
[1757425720559,3.2078,4358.0,4357.9,0.22947]
[1757425720857,0.6116,4358.0,4357.9,0.22947]
[1757425721055,3.2078,4358.5,4358.1,0.3764]
[1757425721360,0.51258238,4358.4,4358.3,0.3764]
[1757425721563,0.239,4358.4,4358.3,0.3764]
[1757425721856,0.3726,4358.3,4357.7,0.3764]
[1757425722057,0.75201361,4358.4,4357.7,0.3764]
[1757425722058,0.239,4358.4,4357.9,0.22947]
[1757425722252,3.2078,4358.0,4357.2,0.3764]
[1757425722454,3.2078,4358.0,4357.6,0.22947]
[1757425722455,0.75203777,4357.9,4357.6,0.22947]
[1757425722654,0.239,4357.9,4357.5,0.1538]
[1757425722864,0.239,4357.9,4357.6,0.3764]
[1757425723159,3.2078,4358.0,4357.9,0.3764]
[1757425723359,3.96035679,4358.0,4357.9,0.60587]
[1757425724561,0.75255679,4358.0,4357.9,0.60587]
[1757425724763,0.239,4358.4,4358.1,0.3764]
[1757425724956,0.51482725,4358.3,4358.0,0.1538]
[1757425725156,0.88742725,4358.2,4357.5,0.1538]
[1757425725357,0.51482725,4358.1,4357.6,0.3764]
[1757425725562,0.51482725,4358.1,4357.5,0.1538]
[1757425725762,0.75382725,4358.1,4357.5,0.5302]
[1757425725959,0.51482725,4358.0,4357.6,0.3764]
[1757425726158,0.88742725,4358.0,4357.8,0.22947]
[1757425726356,0.51482725,4357.9,4357.8,0.60587]
[1757425726769,0.51482725,4357.9,4357.8,0.3764]
[1757425726956,0.51482725,4357.9,4357.5,0.1538]
[1757425727156,0.239,4358.1,4357.9,0.3726]
[1757425727357,0.51605796,4358.0,4357.9,0.3726]
[1757425727658,0.371,4357.9,4357.3,3.2078]
[1757425727964,0.371,4357.6,4356.9,0.3726]
[1757425728158,1.12605796,4357.5,4357.2,0.22947]
[1757425728358,0.51605796,4357.4,4357.1,0.22947]
[1757425728559,0.371,4357.3,4357.1,0.22947]
[1757425728759,0.75505796,4357.2,4356.6,0.3726]
[1757425728955,0.51605796,4357.1,4356.2,3.2078]
[1757425729156,0.51605796,4357.1,4356.6,0.3726]
[1757425729362,0.51605796,4357.1,4357.0,0.75727]
[1757425729756,0.239,4357.4,4357.1,0.3726]
[1757425730067,0.51678686,4357.3,4357.1,0.3726]
[1757425730361,0.51678686,4357.2,4357.1,0.3726]
[1757425731259,0.371,4357.1,4356.5,0.1538]
[1757425731458,0.239,4357.4,4356.5,0.1538]
[1757425731459,0.51678686,4357.0,4356.6,0.3726]
[1757425731764,1.47381056,4357.4,4356.6,0.3726]
[1757425731765,0.51678686,4356.9,4356.6,0.3726]
[1757425731959,0.239,4357.4,4357.1,0.3726]
[1757425732371,0.239,4357.4,4357.2,0.3726]
[1757425732666,0.61,4357.4,4357.2,0.3726]
[1757425732858,0.61,4357.4,4357.0,0.86641314]
[1757425733064,0.61,4357.4,4357.2,0.3726]
[1757425733462,0.61,4357.4,4357.0,0.86641314]
[1757425733663,0.239,4357.3,4357.1,0.3726]
[1757425734167,0.239,4357.3,4357.2,0.22947]
[1757425734368,1.23481056,4357.6,4357.2,0.60207]
[1757425734567,0.239,4357.5,4357.4,0.3726]
[1757425735564,0.61,4357.5,4357.3,2.0366]
[1757425735768,0.61,4357.5,4357.3,2.26607]
[1757425735967,0.371,4357.4,4357.3,1.664]
[1757425736868,1.23481056,4357.4,4357.3,2.0366]
[1757425737080,1.47381056,4357.5,4357.3,2.0366]
[1757425737262,1.47381056,4357.5,4357.4,0.3726]
[1757425737866,0.371,4357.4,4357.1,0.3726]
[1757425738664,1.47381056,4357.5,4357.1,0.3726]
[1757425738869,3.5788,4357.2,4357.1,0.60207]
[1757425739073,3.8178,4357.2,4357.1,0.60207]
[1757425739371,3.8178,4357.2,4357.1,0.3726]
[1757425739567,0.371,4356.9,4356.2,0.3726]
[1757425739771,0.1291,4357.0,4356.2,0.3726]
[1757425739772,3.2078,4356.6,4356.2,0.3726]
[1757425739970,0.239,4356.5,4356.1,0.3726]
[1757425740163,0.239,4356.5,4356.3,0.3726]
[1757425740369,3.2078,4356.6,4356.5,0.5278]
[1757425740678,3.4468,4356.6,4356.5,0.75727]
[1757425740973,0.239,4356.6,4356.5,0.38467]
[1757425741269,3.2078,4357.1,4357.0,0.1552]
[1757425741470,3.2078,4357.1,4357.0,0.75727]
[1757425741779,3.4468,4357.1,4357.0,0.75727]
[1757425741968,1.23459192,4357.4,4357.0,0.75727]
[1757425742171,4.44239192,4357.7,4357.5,0.5278]
[1757425742373,1.47359192,4357.9,4357.7,0.3726]
[1757425742572,0.239,4357.9,4357.7,0.3726]
[1757425742777,1.23459192,4358.1,4358.0,0.1552]
[1757425742968,4.44239192,4358.3,4358.0,0.75727]
[1757425743170,1.23459192,4358.6,4358.5,0.1552]
[1757425743365,3.2078,4358.8,4358.6,0.3726]
[1757425743566,0.239,4358.7,4358.6,0.3726]
[1757425743971,0.75419785,4358.7,4358.6,0.3726]
[1757425744472,0.75419785,4358.7,4358.1,3.2078]
[1757425744678,0.4465,4358.5,4357.6,0.3726]
[1757425744880,0.4465,4358.5,4358.1,0.22947]
[1757425744881,0.371,4358.3,4358.1,0.22947]
[1757425745176,3.84651707,4358.2,4357.8,0.22947]
[1757425745373,0.87771707,4358.1,4357.6,1.24]
[1757425745574,4.44363968,4357.7,4357.6,1.6126]
[1757425745779,4.08551707,4357.7,4357.6,1.6126]
[1757425746478,0.75419785,4357.7,4357.6,1.6126]
[1757425747281,0.75419785,4357.7,4357.6,5.6126]
[1757425747577,0.51519785,4357.7,4357.6,5.6126]
[1757425747878,0.51526156,4358.0,4357.6,5.46948]
[1757425748081,0.238,4358.7,4358.0,0.1552]
[1757425748279,0.238,4358.7,4358.1,0.3726]
[1757425748480,0.238,4358.7,4358.6,0.22947]
[1757425748681,0.238,4358.7,4358.6,0.60207]
[1757425748976,0.609,4358.7,4358.0,0.1552]
[1757425749288,0.609,4358.7,4358.6,0.60207]
[1757425749584,0.609,4358.7,4358.6,0.22947]
[1757425749784,0.609,4358.7,4358.0,0.1552]
[1757425750083,0.609,4358.7,4358.6,0.22947]
[1757425750279,0.609,4358.7,4358.1,0.3726]
[1757425750578,0.5273,4358.5,4358.0,3.7648]
[1757425750782,0.609,4358.4,4358.3,0.22947]
[1757425751273,0.238,4358.4,4358.0,3.7648]
[1757425751474,0.371,4358.3,4358.0,3.7648]
[1757425751674,0.238,4358.4,4358.3,0.22947]
[1757425751882,0.609,4358.4,4358.3,0.22947]
[1757425752083,0.371,4358.3,4358.0,3.7648]
[1757425752279,0.238,4358.4,4358.0,3.7648]
[1757425752582,0.609,4358.4,4358.3,0.22947]
[1757425752778,0.609,4358.4,4358.0,3.7648]
[1757425752779,0.371,4358.3,4358.0,3.7648]
[1757425753079,1.47383968,4358.4,4358.0,3.7648]
[1757425753287,0.12344566,4358.3,4358.0,3.7648]
[1757425753478,0.238,4358.2,4358.0,3.0768]
[1757425753782,1.17923968,4358.4,4358.2,0.3726]
[1757425753977,0.36144137,4358.3,4358.1,0.22947]
[1757425754180,0.12344123,4358.2,4358.0,3.0768]
[1757425754379,0.238,4358.3,4358.0,3.0768]
[1757425754771,0.11944111,4358.2,4358.0,3.0768]
[1757425755082,0.238,4358.3,4358.0,3.0768]
[1757425755083,0.11944111,4358.1,4358.0,3.0768]
[1757425755683,0.49044111,4358.1,4358.0,1.9289395]
[1757425755886,0.49044111,4358.1,4357.4,1.24]
[1757425756083,3.2078,4357.9,4357.4,1.24]
[1757425756279,0.371,4357.7,4357.6,2.364]
[1757425756479,0.49044111,4357.7,4357.6,1.7893]
[1757425756681,0.49044111,4357.7,4357.4,0.0921395]
[1757425756682,0.22949001,4357.6,4357.4,0.0921395]
[1757425756878,0.35744111,4357.5,4357.4,0.0921395]
[1757425757077,0.58693112,4357.5,4357.4,0.0921395]
[1757425757277,0.35744111,4357.5,4357.4,0.0921395]
[1757425759091,0.35744111,4357.5,4357.4,0.4750395]
[1757425759775,0.35744111,4357.5,4357.4,0.0921395]
[1757425760288,0.86751021,4357.5,4357.4,0.4750395]
[1757425760678,0.62951021,4357.5,4357.4,0.4750395]
[1757425760886,0.86751021,4357.5,4357.4,0.4750395]
[1757425761581,0.62951021,4357.5,4357.4,0.4750395]
[1757425761787,0.7480691,4357.5,4357.4,0.7045095]
[1757425761988,0.3332691,4357.5,4357.4,4.7045095]
[1757425762585,0.3332691,4357.5,4357.4,0.7045095]
[1757425762780,0.3332691,4357.5,4357.4,0.4750395]
[1757425763091,0.3332691,4357.5,4357.4,0.7045095]
[1757425764987,0.7164691,4357.5,4357.4,0.0921395]
[1757425766287,0.0952691,4357.5,4357.4,0.7045095]
[1757425766485,0.3332691,4357.5,4357.4,0.7045095]
[1757425768990,0.97208205,4357.5,4357.4,0.0921395]
[1757425769592,0.83378205,4357.5,4357.4,0.0921395]
[1757425770189,0.45058205,4357.5,4357.4,0.4750395]
[1757425770495,0.3332691,4357.5,4357.4,0.4750395]
[1757425770694,0.3332691,4357.5,4357.4,0.7045095]
[1757425772391,0.0952691,4357.5,4357.4,0.7045095]
[1757425772590,0.3332691,4357.5,4357.4,0.7045095]
[1757425773991,0.238,4357.5,4357.4,0.7045095]
[1757425774192,0.238,4357.7,4357.6,0.3829]
[1757425774391,0.74610799,4357.7,4357.6,0.3829]
[1757425775291,0.09330799,4357.7,4357.6,4.3829]
[1757425775493,3.2078,4358.4,4358.1,0.3829]
[1757425775691,3.4458,4358.4,4358.1,0.3829]
[1757425775995,3.4458,4358.4,4358.3,0.61237]
[1757425776192,3.829,4358.4,4358.2,0.22947]
[1757425776396,3.4458,4358.4,4357.8,0.3829]
[1757425776694,0.3832,4358.3,4357.4,0.0921395]
[1757425776891,0.1585,4358.0,4357.9,0.22947]
[1757425777093,0.7797,4358.0,4357.9,0.22947]
[1757425777391,0.6212,4358.0,4357.5,0.1635]
[1757425777593,3.2078,4358.4,4358.0,0.1635]
[1757425777594,3.591,4358.4,4358.0,0.1635]
[1757425777788,0.238,4358.3,4358.0,0.1635]
[1757425777990,3.2078,4358.4,4358.1,0.3829]
[1757425778190,0.238,4358.3,4358.1,0.3829]
[1757425778392,3.2078,4358.4,4358.1,0.3829]
[1757425778590,0.238,4358.3,4358.1,0.3829]
[1757425778793,0.238,4358.3,4358.0,0.1635]
[1757425778996,0.238,4358.3,4358.2,0.22947]
[1757425779199,0.238,4358.3,4358.2,0.61237]
[1757425782894,0.6212,4358.3,4357.8,0.3829]
[1757425783103,0.3832,4358.2,4358.1,0.22947]
[1757425783490,0.3832,4358.2,4357.6,0.3829]
[1757425783695,0.1585,4358.0,4357.4,0.0921395]
[1757425783896,0.1585,4358.0,4357.7,0.22947]
[1757425783897,0.3832,4357.8,4357.7,0.22947]
[1757425784293,0.5417,4358.5,4357.8,0.3829]
[1757425784494,0.238,4358.4,4357.8,0.3829]
[1757425784696,3.2078,4358.6,4358.4,0.22947]
[1757425784894,3.4458,4358.6,4358.2,0.3829]
[1757425785098,3.4458,4358.6,4358.5,0.61237]
[1757425785504,3.4458,4358.6,4358.5,0.77587]
[1757425785704,3.4458,4358.6,4358.5,0.61237]
[1757425785895,3.591,4358.6,4358.5,0.61237]
[1757425786099,0.3832,4359.1,4358.5,0.77587]
[1757425786297,3.4458,4359.2,4358.7,0.3829]
[1757425786501,3.4458,4359.2,4359.1,0.64097]
[1757425786807,3.8525,4359.2,4359.1,0.64097]
[1757425787013,3.8525,4359.2,4359.1,0.4115]
[1757425787506,4.35811253,4359.2,4359.1,0.4115]
[1757425787908,3.95141253,4359.2,4358.6,3.2078]
[1757425788112,3.4458,4359.2,4359.1,0.22947]
[1757425788309,3.95142862,4359.2,4358.6,3.6193]
[1757425788617,0.1576,4359.0,4358.8,0.22947]
[1757425788811,0.91232862,4358.9,4358.8,0.22947]
[1757425789009,0.4067,4358.8,4358.6,0.4115]
[1757425789209,0.50562862,4358.7,4358.6,0.4115]
[1757425789511,0.91232862,4358.7,4358.6,0.4115]
[1757425790414,0.50562862,4358.7,4358.6,0.4115]
[1757425790614,0.50562862,4358.7,4358.0,0.1635]
[1757425790615,4.12012862,4358.7,4358.0,0.1635]
[1757425790815,0.1576,4357.5,4356.8,0.4115]
[1757425791015,0.8023,4357.5,4356.8,0.4115]
[1757425791315,0.4067,4357.4,4356.6,3.2078]
[1757425791513,0.4067,4357.2,4356.7,0.22947]
[1757425791708,0.74390196,4357.1,4356.8,0.4115]
[1757425792014,0.4067,4356.8,4356.7,0.22947]
[1757425792320,0.91260196,4356.8,4356.2,0.4115]
[1757425792513,1.15060196,4356.7,4356.1,0.4115]
[1757425792708,1.15060196,4356.7,4356.0,0.1637]
[1757425792709,0.50590196,4356.6,4356.0,0.1637]
[1757425792910,0.50590196,4356.6,4356.0,0.5752]
[1757425792911,0.91260196,4356.6,4356.0,0.5752]
[1757425793110,0.4067,4356.6,4356.4,0.22947]
[1757425793309,0.4067,4356.6,4356.0,0.5752]
[1757425793615,0.4067,4356.6,4356.4,0.22947]
[1757425793815,0.238,4356.7,4356.4,0.22947]
[1757425794015,0.50579719,4356.6,4356.0,0.5752]
[1757425794310,0.1576,4357.5,4356.0,0.5752]
[1757425794311,0.4067,4357.1,4356.1,0.4115]
[1757425794516,0.74368357,4357.0,4356.1,0.4115]
[1757425794719,0.50568357,4356.9,4356.8,0.22947]
[1757425794918,0.50568357,4356.9,4356.8,0.64097]
[1757425795112,0.50568357,4356.9,4356.8,0.4115]
[1757425795713,0.74368357,4356.9,4356.8,0.4115]
[1757425796015,4.35818357,4356.9,4356.5,0.1637]
[1757425796218,3.8525,4356.9,4356.8,0.22947]
[1757425796411,3.95148485,4356.9,4356.8,0.64097]
[1757425796610,3.95148485,4356.9,4356.8,0.4115]
[1757425797419,3.71348485,4356.9,4356.8,0.4115]
[1757425797608,3.2078,4356.9,4356.8,0.4115]
[1757425799613,0.238,4357.1,4356.5,0.1637]
[1757425799815,0.238,4357.1,4357.0,0.22947]
[1757425800121,0.238,4357.1,4357.0,0.64097]
[1757425800317,3.6145,4357.9,4357.1,0.4115]
[1757425800618,0.4067,4357.7,4356.8,0.4115]
[1757425800809,3.2078,4357.4,4356.6,0.4115]
[1757425801015,3.2078,4358.1,4357.5,0.1637]
[1757425801218,0.50552726,4358.0,4357.6,0.4115]
[1757425801416,0.50552726,4357.9,4357.5,0.1637]
[1757425801614,0.238,4358.3,4358.1,0.22947]
[1757425801814,0.91320193,4358.2,4358.1,0.22947]
[1757425802016,0.91320193,4358.2,4357.6,0.4115]
[1757425802212,3.2078,4358.7,4358.1,0.22947]
[1757425802522,0.50650646,4358.6,4358.1,0.4115]
[1757425802718,0.4067,4358.8,4358.6,0.64097]
[1757425803030,0.50644214,4358.7,4358.6,0.22947]
[1757425803421,0.91314214,4358.7,4358.5,0.4115]
[1757425803618,0.4067,4358.7,4358.4,3.2078]
[1757425803924,0.91309726,4358.6,4358.5,0.22947]
[1757425804427,0.91307887,4358.6,4358.5,0.22947]
[1757425804619,0.50637887,4358.6,4357.7,3.2078]
[1757425804820,0.66398268,4358.5,4357.7,3.2078]
[1757425805121,0.4067,4357.9,4357.1,3.6193]
[1757425805326,0.238,4357.8,4357.4,0.22947]
[1757425805626,0.4067,4357.7,4357.3,0.22947]
[1757425805824,0.238,4357.8,4356.7,0.4115]
[1757425806125,0.5643,4357.5,4356.7,0.4115]
[1757425806321,0.50649472,4357.4,4356.7,0.4115]
[1757425806525,0.50649472,4357.4,4356.6,3.2078]
[1757425806526,0.6447,4357.3,4356.6,3.2078]
[1757425806723,0.238,4357.3,4356.6,3.2078]
[1757425806923,0.4067,4357.2,4356.8,0.22947]
[1757425807119,0.238,4357.3,4356.8,0.22947]
[1757425808023,3.2078,4357.6,4356.7,0.4115]
[1757425808219,0.74445387,4357.5,4357.2,3.2078]
[1757425808424,0.238,4357.5,4357.2,3.2078]
[1757425808628,0.238,4357.5,4357.4,0.22947]
[1757425808917,0.4067,4357.4,4357.1,0.22947]
[1757425809122,0.4067,4357.2,4356.7,3.2078]
[1757425809328,0.1576,4357.0,4356.7,3.2078]
[1757425809626,0.3956,4357.0,4356.7,3.2078]
[1757425810025,0.4067,4356.9,4356.7,3.2078]
[1757425810423,0.3956,4357.0,4356.7,3.6193]
[1757425810916,0.4067,4356.9,4356.7,3.6193]
[1757425811321,0.4067,4356.8,4356.1,3.6193]
[1757425811528,0.4067,4356.6,4356.1,3.6193]
[1757425811726,0.4067,4356.4,4355.7,0.4115]
[1757425812326,0.4067,4356.2,4355.7,0.22947]
[1757425812532,0.50653476,4356.1,4355.2,0.4115]
[1757425812728,0.74453476,4356.0,4355.7,0.22947]
[1757425812930,0.74453476,4356.0,4355.8,0.4115]
[1757425812931,0.91323476,4355.9,4355.8,0.4115]
[1757425813125,0.50653476,4355.9,4355.7,0.22947]
[1757425813324,0.238,4356.0,4355.7,0.22947]
[1757425813527,0.4067,4355.9,4355.7,0.22947]
[1757425814032,0.238,4356.0,4355.7,0.22947]
[1757425814227,0.4067,4355.9,4355.7,0.22947]
[1757425814530,0.238,4356.0,4355.7,0.22947]
[1757425814531,0.3956,4356.0,4355.7,0.22947]
[1757425815229,0.3956,4356.0,4354.7,0.238]
[1757425815230,0.4067,4355.8,4354.8,0.4115]
[1757425815433,7.6034,4356.0,4355.1,0.22947]
[1757425815434,0.4067,4355.4,4355.1,0.22947]
[1757425815730,3.4458,4355.5,4355.1,0.64097]
[1757425815929,3.8525,4355.5,4354.8,0.4115]
[1757425816126,3.6034,4355.5,4354.5,3.783]
[1757425816329,0.1576,4355.0,4354.7,0.22947]
[1757425816533,3.95179882,4354.9,4353.9,3.2078]
[1757425816727,0.88479882,4354.8,4354.1,0.22947]
[1757425816927,0.3788,4354.6,4354.2,0.22947]
[1757425817132,0.1148,4354.7,4354.2,0.22947]
[1757425817432,3.5866,4354.4,4353.8,0.3912]
[1757425817731,0.3788,4354.2,4354.1,0.22947]
[1757425817935,0.3788,4354.2,4352.8,3.77359825]
[1757425817936,0.3788,4354.1,4352.8,3.77359825]
[1757425818132,3.5866,4353.8,4353.5,0.22947]
[1757425818333,0.238,4353.7,4353.6,0.3912]
[1757425818536,0.238,4354.0,4353.7,0.3912]
[1757425818840,0.238,4354.0,4353.5,0.166]
[1757425818841,0.238,4354.0,4353.6,0.3912]
[1757425819135,0.238,4354.1,4353.9,0.22947]
[1757425819329,0.238,4354.1,4353.6,0.3912]
[1757425819734,0.238,4354.1,4354.0,0.22947]
[1757425819929,0.238,4354.1,4354.0,0.62067]
[1757425820236,0.238,4354.2,4354.1,0.3912]
[1757425820535,3.2078,4354.5,4354.1,0.3912]
[1757425820536,0.238,4354.4,4354.1,0.3912]
[1757425820732,0.3528,4354.7,4354.5,0.166]
[1757425820937,0.3528,4354.7,4354.6,0.62067]
[1757425821442,0.3528,4354.7,4354.6,0.3912]
[1757425821738,0.1148,4354.7,4354.6,0.3912]
[1757425822736,1.39155454,4356.5,4355.5,0.166]
[1757425822737,3.2078,4356.2,4355.5,0.166]
[1757425822926,0.3788,4356.1,4355.9,0.22947]
[1757425823126,3.2078,4356.2,4355.9,0.22947]
[1757425823329,0.3788,4356.1,4355.5,0.3912]
[1757425823530,0.3788,4356.0,4355.9,0.22947]
[1757425823730,0.238,4356.1,4356.0,0.62067]
[1757425824329,0.6168,4356.1,4356.0,0.22947]
[1757425824534,0.238,4356.1,4355.6,0.3912]
[1757425824737,0.1576,4356.0,4355.2,3.2078]
[1757425825042,3.2078,4356.2,4356.1,0.0137]
[1757425825233,3.95049928,4356.2,4356.1,0.0137]
[1757425825536,8.18005928,4356.2,4355.9,2.12519201]
[1757425825732,0.50469928,4356.1,4355.9,2.12519201]
[1757425826041,0.50469928,4356.0,4355.9,2.12519201]
[1757425827543,0.50469928,4356.0,4355.9,2.51639201]
[1757425827936,0.50469928,4356.0,4355.0,0.166]
[1757425827937,0.50469928,4356.0,4355.2,3.2384]
[1757425828244,3.2078,4355.7,4355.2,2.8472]
[1757425828440,0.74269928,4355.6,4355.2,3.2384]
[1757425828640,0.238,4355.6,4355.2,3.2384]
[1757425828836,0.50466469,4355.5,4355.2,2.8472]
[1757425829037,0.238,4355.6,4355.2,2.8472]
[1757425829244,0.50467612,4355.5,4355.2,2.8472]
[1757425829440,0.50467612,4355.4,4355.2,2.8472]
[1757425829636,0.50467612,4355.3,4354.3,0.3912]
[1757425829838,3.2078,4354.6,4354.5,0.5572]
[1757425830144,3.4458,4354.6,4354.5,0.3912]
[1757425830347,3.4458,4354.6,4354.0,0.166]
[1757425830534,3.4458,4354.6,4354.2,0.3912]
[1757425830735,3.4458,4354.6,4354.5,0.166]
[1757425831041,3.4458,4354.6,4354.5,0.5572]
[1757425831545,2.26799099,4354.6,4354.5,0.5572]
[1757425831743,6.26799099,4354.6,4354.0,3.6348]
[1757425831944,3.2078,4354.1,4354.0,3.0776]
[1757425832143,3.95599099,4354.1,4353.5,0.3912]
[1757425832344,3.2078,4353.6,4353.5,0.3912]
[1757425832640,3.95599099,4353.6,4353.5,0.5572]
[1757425835140,3.95599099,4353.6,4352.5,0.166]
[1757425835340,0.51019099,4353.5,4353.3,0.22947]
[1757425835546,0.51019099,4353.5,4352.5,0.166]
[1757425835846,0.51019099,4353.5,4353.3,0.62067]
[1757425836049,0.51019099,4353.5,4353.3,0.22947]
[1757425836248,0.51019099,4353.5,4353.4,0.3912]
[1757425837342,0.74819099,4353.5,4353.4,0.3912]
[1757425837836,0.51019099,4353.5,4353.4,0.62067]
[1757425838042,0.238,4353.5,4353.4,0.62067]
[1757425838442,4.44175454,4354.6,4354.5,0.5572]
[1757425838642,3.71873877,4354.6,4354.5,0.5572]
[1757425839138,3.71873877,4354.6,4354.0,3.3738]
[1757425839344,0.74893877,4354.5,4354.1,0.3912]
[1757425839544,0.51093877,4354.4,4354.1,0.3912]